bitfinex/quotes_SOLUSD_20250413
["timestamp","ask_amount","ask_price","bid_price","bid_amount"]
[1744574679119,26.0,128.41,128.35,41.33190368]
[1744574679432,41.33190368,128.39,128.34,41.33190368]
[1744574679725,0.28432314,128.4,128.31,41.33190368]
[1744574679924,26.0,128.41,128.35,41.33190368]
[1744574680104,41.33190368,128.43,128.38,41.33190368]
[1744574680309,49.11760368,128.44,128.39,41.33190368]
[1744574680619,41.33190368,128.42,128.37,49.12180368]
[1744574680924,41.33190368,128.41,128.36,60.12371411]
[1744574681130,41.33190368,128.38,128.31,7.7936]
[1744574681427,41.33190368,128.36,128.32,18.79181043]
[1744574681899,26.0,128.39,128.32,18.79181043]
[1744574682209,41.33190368,128.36,128.31,49.12550368]
[1744574682542,41.33190368,128.37,128.32,18.79181043]
[1744574682743,41.33190368,128.36,128.31,49.12550368]
[1744574682952,41.33190368,128.37,128.32,60.12371411]
[1744574683112,41.33190368,128.37,128.32,18.79181043]
[1744574683322,41.33190368,128.37,128.32,60.12371411]
[1744574683520,16.32216157,128.42,128.35,41.33190368]
[1744574683521,23.9674,128.42,128.35,41.33190368]
[1744574683751,41.33190368,128.4,128.35,18.79181043]
[1744574683941,41.33190368,128.41,128.36,41.33190368]
[1744574684116,41.33190368,128.41,128.36,49.12230368]
[1744574684335,49.11950368,128.41,128.36,49.12230368]
[1744574684819,49.11950368,128.41,128.36,7.7904]
[1744574685135,41.33190368,128.41,128.36,18.64964886]
[1744574685315,41.33190368,128.4,128.35,41.33190368]
[1744574685515,41.33190368,128.39,128.34,7.7917]
[1744574685716,41.33190368,128.41,128.36,41.33190368]
[1744574685921,7.7846,128.46,128.4,41.33190368]
[1744574686153,267.08,128.49,128.43,41.33190368]
[1744574686449,41.33190368,128.46,128.4,26.0]
[1744574686665,41.33190368,128.45,128.37,7.93206157]
[1744574686959,41.33190368,128.4,128.33,7.7919]
[1744574687124,0.28432314,128.46,128.34,18.79181043]
[1744574687125,0.28432314,128.43,128.34,18.79181043]
[1744574687325,41.33190368,128.39,128.34,18.79181043]
[1744574687536,41.33190368,128.39,128.34,60.12371411]
[1744574687735,26.0,128.44,128.35,41.33190368]
[1744574687952,41.33190368,128.39,128.34,18.79181043]
[1744574688158,41.33190368,128.39,128.34,26.58321043]
[1744574688333,41.33190368,128.38,128.33,41.33190368]
[1744574688655,41.33190368,128.4,128.34,60.12371411]
[1744574688829,7.7869,128.42,128.34,60.12371411]
[1744574689032,41.33190368,128.4,128.34,60.12371411]
[1744574689271,7.7869,128.42,128.36,60.12371411]
[1744574689564,41.33190368,128.42,128.36,26.14216157]
[1744574689722,35.2213,128.46,128.34,41.33190368]
[1744574689723,41.33190368,128.4,128.34,41.33190368]
[1744574689922,41.33190368,128.39,128.34,41.33190368]
[1744574690129,26.0,128.42,128.38,41.33190368]
[1744574690334,15.76,128.46,128.38,41.33190368]
[1744574690565,67.33190368,128.43,128.38,41.33190368]
[1744574690764,26.0,128.43,128.38,41.33190368]
[1744574690968,67.33190368,128.43,128.38,41.33190368]
[1744574691168,41.33190368,128.43,128.38,41.33190368]
[1744574691340,49.11830368,128.43,128.38,49.12120368]
[1744574691540,41.33190368,128.43,128.38,49.12120368]
[1744574691754,49.11820368,128.43,128.38,7.7893]
[1744574691956,41.33190368,128.44,128.39,60.12371411]
[1744574692164,15.76,128.52,128.43,60.12371411]
[1744574692334,0.0001,128.53,128.47,41.47406525]
[1744574692534,49.11230368,128.53,128.47,41.47406525]
[1744574692733,41.33190368,128.52,128.47,41.47406525]
[1744574693030,41.33190368,128.5,128.43,26.0]
[1744574693234,41.33190368,128.51,128.45,41.33190368]
[1744574693467,0.0001,128.53,128.47,7.7839]
[1744574693650,41.33190368,128.51,128.47,7.7839]
[1744574694169,41.33190368,128.5,128.44,60.12371411]
[1744574694342,41.33190368,128.49,128.44,49.11760368]
[1744574694536,41.33190368,128.47,128.42,60.12371411]
[1744574694767,26.0,128.5,128.42,26.57851043]
[1744574695068,19.79191043,128.53,128.38,1.5815]
[1744574695069,41.33190368,128.45,128.39,60.12371411]
[1744574695367,41.33190368,128.43,128.38,49.12100368]
[1744574695572,41.33190368,128.44,128.38,49.12100368]
[1744574695790,0.28432314,128.5,128.43,41.33190368]
[1744574695967,49.11400368,128.5,128.44,41.33190368]
[1744574696284,41.33190368,128.46,128.41,44.64964886]
[1744574696441,26.0,128.48,128.42,41.47406525]
[1744574696638,41.33190368,128.47,128.41,85.98155254]
[1744574696839,41.33190368,128.46,128.41,85.98155254]
[1744574697146,41.33190368,128.46,128.41,44.64964886]
[1744574697343,41.33190368,128.43,128.38,26.58091043]
[1744574697545,41.33190368,128.43,128.38,67.91281411]
[1744574697749,41.33190368,128.45,128.39,60.12371411]
[1744574697945,41.33190368,128.43,128.38,49.12100368]
[1744574698282,41.33190368,128.42,128.38,7.7891]
[1744574698772,41.33190368,128.43,128.38,59.98155254]
[1744574699157,41.33190368,128.46,128.41,18.79181043]
[1744574699352,7.7821,128.5,128.44,7.7857]
[1744574699679,41.33190368,128.48,128.44,7.7857]
[1744574700176,41.33190368,128.48,128.43,41.47406525]
[1744574700177,41.33190368,128.48,128.43,49.26016525]
[1744574700383,41.33190368,128.48,128.43,7.92826157]
[1744574700566,41.33190368,128.45,128.41,7.7875]
[1744574701078,41.33190368,128.44,128.4,7.7879]
[1744574701336,41.33190368,128.42,128.36,25.6449]
[1744574701465,41.33190368,128.42,128.37,26.58171043]
[1744574701783,19.4625,128.46,128.37,67.91361411]
[1744574701983,26.0,128.47,128.41,41.33190368]
[1744574702163,41.33190368,128.46,128.41,41.33190368]
[1744574702363,41.33190368,128.44,128.37,46.05661043]
[1744574702563,41.33190368,128.41,128.37,26.58171043]
[1744574703091,41.33190368,128.42,128.37,26.58171043]
[1744574703581,41.33190368,128.42,128.37,67.91361411]
[1744574703881,99.89805254,128.48,128.38,41.33190368]
[1744574703882,7.7851,128.45,128.38,41.33190368]
[1744574704084,41.33190368,128.44,128.39,41.33190368]
[1744574704256,41.33190368,128.43,128.38,41.33190368]
[1744574704580,41.33190368,128.4,128.35,7.7909]
[1744574704758,26.0,128.42,128.35,7.7909]
[1744574704965,41.33190368,128.4,128.35,49.12280368]
[1744574705174,41.33190368,128.4,128.35,7.7909]
[1744574705374,41.33190368,128.4,128.35,49.12280368]
[1744574705584,41.33190368,128.41,128.35,49.12280368]
[1744574705779,41.33190368,128.41,128.36,41.33190368]
[1744574706205,41.33190368,128.41,128.35,49.12280368]
[1744574706574,41.33190368,128.4,128.35,49.12280368]
[1744574707089,33.7869,128.42,128.35,49.12280368]
[1744574707294,41.33190368,128.41,128.35,49.12280368]
[1744574707607,49.12120368,128.38,128.33,41.33190368]
[1744574707801,41.33190368,128.37,128.32,14.1526]
[1744574707976,7.7875,128.41,128.33,41.47406525]
[1744574708177,41.33190368,128.4,128.34,41.33190368]
[1744574708777,41.33190368,128.39,128.34,41.33190368]
[1744574708978,7.7875,128.41,128.36,41.33190368]
[1744574709185,34.95772687,128.41,128.36,27.17022687]
[1744574709521,34.95772687,128.41,128.34,0.14216157]
[1744574709808,34.95772687,128.41,128.36,7.7905]
[1744574710304,34.95772687,128.41,128.32,25.8424]
[1744574710305,27.17022687,128.37,128.32,6.3599]
[1744574710502,27.17022687,128.35,128.31,7.8563]
[1744574710878,7.7875,128.41,128.34,53.17022687]
[1744574711198,7.7845,128.46,128.37,6.51556157]
[1744574711390,7.7845,128.46,128.41,27.17022687]
[1744574711702,27.17022687,128.44,128.39,34.95852687]
[1744574711918,18.64964886,128.47,128.38,27.17022687]
[1744574712208,27.17022687,128.44,128.38,7.7891]
[1744574712377,27.17022687,128.44,128.39,27.17022687]
[1744574712707,27.17022687,128.44,128.38,7.7891]
[1744574712708,27.17022687,128.44,128.38,34.95932687]
[1744574713105,27.17022687,128.44,128.39,27.17022687]
[1744574713777,7.7847,128.46,128.39,34.95892687]
[1744574714085,26.0,128.46,128.41,27.17022687]
[1744574714588,27.17022687,128.45,128.39,26.43834886]
[1744574714785,27.17022687,128.41,128.35,7.7911]
[1744574714990,4.05648476,128.49,128.41,0.14216157]
[1744574715285,4.05648476,128.49,128.35,1.0]
[1744574715286,27.17022687,128.45,128.38,18.79181043]
[1744574715492,27.17022687,128.45,128.39,27.17022687]
[1744574715681,27.17022687,128.46,128.41,27.17022687]
[1744574716006,27.17022687,128.47,128.42,34.95712687]
[1744574716211,27.17022687,128.45,128.39,27.17022687]
[1744574716423,27.17022687,128.4,128.33,27.17022687]
[1744574716577,27.17022687,128.34,128.3,0.063]
[1744574716782,27.17022687,128.33,128.3,0.063]
[1744574717183,27.17022687,128.32,128.3,0.063]
[1744574719407,41.27935766,128.32,128.3,0.063]
[1744574721912,1.5932,128.42,128.3,0.063]
[1744574722112,6.332,128.43,128.31,44.85481043]
[1744574722291,7.7845,128.46,128.35,26.0]
[1744574722495,41.27935766,128.42,128.36,41.27935766]
[1744574722681,41.27935766,128.42,128.35,26.0]
[1744574722885,41.27935766,128.43,128.35,26.0]
[1744574723190,41.27935766,128.46,128.4,41.27935766]
[1744574723492,41.27935766,128.46,128.37,0.14216157]
[1744574723839,6.4504,128.51,128.42,41.27935766]
[1744574724015,41.27935766,128.46,128.41,7.7875]
[1744574724316,41.27935766,128.5,128.45,41.27935766]
[1744574724480,41.27935766,128.51,128.46,41.27935766]
[1744574724685,41.27935766,128.51,128.42,18.79181043]
[1744574724883,41.5636808,128.48,128.41,7.7875]
[1744574725093,41.27935766,128.42,128.36,47.63005766]
[1744574725411,41.27935766,128.38,128.32,14.1437]
[1744574725616,26.0,128.43,128.32,14.1437]
[1744574725790,41.27935766,128.41,128.36,41.27935766]
[1744574726308,41.27935766,128.39,128.34,7.7918]
[1744574726514,41.27935766,128.35,128.31,7.8565]
[1744574726711,0.28432314,128.38,128.31,0.063]
[1744574726916,41.27935766,128.34,128.31,0.063]
[1744574727614,41.27935766,128.34,128.31,7.8564]
[1744574727818,41.27935766,128.34,128.31,0.063]
[1744574728123,42.79875766,128.4,128.31,0.063]
[1744574728299,41.27935766,128.36,128.31,41.34235766]
[1744574728496,26.0,128.37,128.31,41.34235766]
[1744574728818,41.27935766,128.32,128.31,0.063]
[1744574729009,41.5636808,128.32,128.31,0.063]
[1744574729198,41.27935766,128.32,128.31,0.063]
[1744574729519,41.5636808,128.32,128.31,0.063]
[1744574729693,67.27935766,128.32,128.31,0.063]
[1744574729892,41.27935766,128.32,128.31,0.063]
[1744574730515,1.5194,128.4,128.31,0.063]
[1744574730713,1.5194,128.4,128.31,41.34235766]
[1744574730714,18.79181043,128.39,128.31,41.34235766]
[1744574730914,1.5194,128.4,128.33,41.27935766]
[1744574731101,0.14216157,128.4,128.33,41.27935766]
[1744574731302,41.27935766,128.38,128.33,41.27935766]
[1744574731603,78.60687595,128.43,128.37,41.27935766]
[1744574731924,41.27935766,128.42,128.36,49.06975766]
[1744574732499,41.27935766,128.42,128.36,7.7904]
[1744574732713,70.82047595,128.43,128.39,41.27935766]
[1744574733827,78.60687595,128.43,128.36,7.93256157]
[1744574734021,70.82047595,128.43,128.37,18.79181043]
[1744574734324,112.09983361,128.43,128.37,41.42151923]
[1744574734521,70.82047595,128.43,128.38,41.27935766]
[1744574734719,70.82047595,128.43,128.37,0.14216157]
[1744574734720,70.82047595,128.43,128.39,41.27935766]
[1744574734907,70.82047595,128.43,128.37,18.79181043]
[1744574735103,70.82047595,128.43,128.39,41.27935766]
[1744574735832,70.82047595,128.43,128.37,18.79181043]
[1744574736131,70.82047595,128.43,128.37,41.27935766]
[1744574736132,41.27935766,128.42,128.37,41.27935766]
[1744574736312,78.60697595,128.43,128.36,26.0]
[1744574736313,78.60697595,128.43,128.36,67.27935766]
[1744574736503,41.27935766,128.38,128.33,7.7922]
[1744574736708,41.27935766,128.4,128.34,0.14216157]
[1744574737031,41.27935766,128.41,128.35,41.27935766]
[1744574737332,41.27935766,128.42,128.37,41.27935766]
[1744574737534,112.09983361,128.43,128.38,41.27935766]
[1744574738700,70.82047595,128.43,128.38,41.27935766]
[1744574739435,112.09983361,128.43,128.38,41.27935766]
[1744574740036,70.82047595,128.43,128.39,41.27935766]
[1744574740326,70.82047595,128.43,128.39,7.7882]
[1744574740530,112.09983361,128.43,128.37,41.27935766]
[1744574741108,70.82047595,128.43,128.36,18.79181043]
[1744574741407,112.09983361,128.43,128.38,41.42151923]
[1744574741611,70.82047595,128.43,128.38,41.42151923]
[1744574742327,70.82047595,128.43,128.38,49.21081923]
[1744574743027,112.09983361,128.43,128.38,49.21081923]
[1744574743535,119.88613361,128.43,128.38,41.27935766]
[1744574743833,41.27935766,128.42,128.36,49.06965766]
[1744574744019,41.27935766,128.42,128.32,149.93385766]
[1744574744020,41.27935766,128.39,128.33,60.07116809]
[1744574744220,0.28432314,128.42,128.34,41.27935766]
[1744574744535,41.27935766,128.42,128.36,41.27935766]
[1744574744722,41.27935766,128.41,128.35,41.27935766]
[1744574744927,41.27935766,128.41,128.36,41.27935766]
[1744574745237,78.60677595,128.43,128.36,41.27935766]
[1744574745238,41.27935766,128.42,128.36,41.27935766]
[1744574745638,41.27935766,128.41,128.36,7.7901]
[1744574746362,112.09983361,128.43,128.37,41.42151923]
[1744574746627,70.82047595,128.43,128.38,41.27935766]
[1744574746836,119.88613361,128.43,128.38,41.27935766]
[1744574747833,119.88613361,128.43,128.38,7.7893]
[1744574748135,119.88613361,128.43,128.38,49.06865766]
[1744574748337,70.82047595,128.43,128.38,49.06865766]
[1744574748509,70.82047595,128.43,128.4,41.27935766]
[1744574748846,70.82047595,128.43,128.42,41.42151923]
[1744574750142,70.82047595,128.43,128.42,49.20841923]
[1744574750818,70.82047595,128.43,128.42,7.92906157]
[1744574751014,70.82047595,128.43,128.42,41.27935766]
[1744574751353,70.82047595,128.43,128.41,49.06665766]
[1744574751913,41.27935766,128.42,128.37,13.9728]
[1744574752122,49.06685766,128.41,128.35,60.07116809]
[1744574752340,41.27935766,128.4,128.35,41.42151923]
[1744574753542,78.60697595,128.43,128.37,41.27935766]
[1744574753750,41.27935766,128.42,128.36,41.27935766]
[1744574754124,70.82047595,128.43,128.39,49.06805766]
[1744574754639,70.82047595,128.43,128.4,41.27935766]
[1744574755243,70.82047595,128.43,128.42,60.07116809]
[1744574755433,70.82047595,128.43,128.42,66.82509123]
[1744574756224,70.82047595,128.43,128.42,74.61199123]
[1744574756426,28.79947595,128.43,128.42,74.61199123]
[1744574756744,41.27945766,128.53,128.46,44.79181043]
[1744574756944,41.27945766,128.53,128.46,86.07116809]
[1744574756945,41.27935766,128.52,128.46,86.07116809]
[1744574757538,41.27935766,128.52,128.46,67.42151923]
[1744574757746,41.27935766,128.51,128.46,67.42151923]
[1744574758148,49.06085766,128.51,128.46,75.20581923]
[1744574758355,41.27935766,128.51,128.46,75.20581923]
[1744574758724,49.06105766,128.51,128.46,67.27935766]
[1744574758927,41.27935766,128.48,128.43,0.14216157]
[1744574759142,41.27935766,128.48,128.43,41.42151923]
[1744574759333,41.27935766,128.49,128.43,41.42151923]
[1744574759735,41.27935766,128.49,128.43,49.20771923]
[1744574760345,0.0001,128.53,128.46,41.42151923]
[1744574760526,41.27935766,128.52,128.46,41.42151923]
[1744574760727,41.27935766,128.51,128.46,0.14216157]
[1744574760928,41.27935766,128.49,128.44,49.06475766]
[1744574761134,41.27935766,128.5,128.45,41.27935766]
[1744574761659,41.27935766,128.5,128.44,49.06475766]
[1744574762351,49.06165766,128.5,128.44,7.7854]
[1744574762654,49.06165766,128.5,128.44,49.06475766]
[1744574763026,49.05995766,128.53,128.47,41.27935766]
[1744574763227,27.12402134,128.52,128.47,27.12402134]
[1744574763953,0.0001,128.53,128.49,27.12402134]
[1744574764259,0.0001,128.53,128.51,27.12402134]
[1744574764549,0.0001,128.53,128.52,27.26618291]
[1744574765151,0.0001,128.53,128.52,59.89482108]
[1744574765354,0.0001,128.53,128.52,60.17914422]
[1744574765539,0.03,128.56,128.55,26.14216157]
[1744574765728,0.03,128.56,128.55,67.52949536]
[1744574765926,0.03,128.56,128.55,86.17914422]
[1744574766130,0.03,128.59,128.58,44.64964886]
[1744574766361,0.03,128.59,128.58,93.52985951]
[1744574766660,0.03,128.59,128.58,93.67202108]
[1744574767326,0.03,128.59,128.54,19.4491]
[1744574767533,0.03,128.59,128.55,41.10301065]
[1744574768256,0.03,128.59,128.57,41.10301065]
[1744574768453,0.03,128.59,128.58,67.95634422]
[1744574769640,0.03,128.63,128.6,0.28432314]
[1744574769841,0.03,128.63,128.62,67.10301065]
[1744574770160,70.23282961,128.72,128.66,44.79181043]
[1744574770341,2.8624617,128.73,128.7,41.10301065]
[1744574770541,10.6305617,128.73,128.68,41.10301065]
[1744574770853,51.73357235,128.73,128.67,41.10301065]
[1744574771054,2.8624617,128.73,128.71,41.10301065]
[1744574771233,2.8624617,128.73,128.68,18.64964886]
[1744574771437,2.8624617,128.73,128.71,41.10301065]
[1744574771757,2.8624617,128.73,128.7,41.10301065]
[1744574772143,2.8624617,128.73,128.68,18.79181043]
[1744574772342,0.03,128.72,128.7,41.10301065]
[1744574772540,0.03,128.72,128.69,7.7706]
[1744574772937,0.03,128.72,128.7,41.10301065]
[1744574773148,19.413,128.78,128.69,7.7706]
[1744574773149,41.10301065,128.79,128.71,41.10301065]
[1744574773348,41.10301065,128.79,128.7,0.14216157]
[1744574773547,41.10301065,128.79,128.74,41.10301065]
[1744574773853,6.60046157,128.82,128.73,41.10301065]
[1744574773854,41.10301065,128.78,128.73,41.10301065]
[1744574774039,41.10301065,128.82,128.77,41.10301065]
[1744574774361,41.10301065,128.81,128.74,0.14216157]
[1744574774662,41.10301065,128.81,128.76,41.10301065]
[1744574774834,41.10301065,128.82,128.77,41.10301065]
[1744574775038,5.3610616,128.81,128.77,41.10301065]
[1744574775366,5.3610616,128.81,128.76,41.24517222]
[1744574775565,46.46407225,128.81,128.75,41.10301065]
[1744574775864,5.3610616,128.81,128.75,0.42648471]
[1744574776341,46.46407225,128.81,128.75,0.14216157]
[1744574776542,5.3610616,128.81,128.77,41.10301065]
[1744574777054,4.8610616,128.81,128.77,41.10301065]
[1744574777544,41.10301065,128.79,128.74,41.10301065]
[1744574777754,41.10301065,128.78,128.71,7.7692]
[1744574777955,0.28432314,128.8,128.71,7.7692]
[1744574778262,41.10301065,128.77,128.72,41.10301065]
[1744574778469,41.10301065,128.77,128.71,41.10301065]
[1744574778762,7.7663,128.76,128.7,7.7698]
[1744574778934,7.7663,128.76,128.71,41.10301065]
[1744574779573,7.7663,128.76,128.7,7.7698]
[1744574779746,7.7639,128.8,128.75,41.10301065]
[1744574780061,12.6244616,128.81,128.74,0.42648471]
[1744574780250,4.8610616,128.81,128.78,41.10301065]
[1744574780565,4.8610616,128.81,128.77,41.10301065]
[1744574780767,4.8610616,128.81,128.77,48.86861065]
[1744574781267,4.8610616,128.81,128.77,7.7656]
[1744574781435,4.8610616,128.81,128.78,41.10301065]
[1744574781952,4.3610616,128.81,128.78,41.10301065]
[1744574782157,4.3610616,128.81,128.79,41.10301065]
[1744574782660,4.3610616,128.81,128.8,7.7639]
[1744574782863,4.3610616,128.81,128.79,41.10301065]
[1744574783064,4.3610616,128.81,128.8,41.10301065]
[1744574783245,4.3610616,128.81,128.8,60.17914422]
[1744574783438,4.3610616,128.81,128.8,59.89482108]
[1744574783642,4.3610616,128.81,128.78,7.765]
[1744574783841,4.3610616,128.81,128.79,41.10301065]
[1744574784038,4.3610616,128.81,128.79,18.79181043]
[1744574784470,4.3610616,128.81,128.8,41.10301065]
[1744574784643,4.3610616,128.81,128.8,59.89482108]
[1744574784968,4.3610616,128.81,128.8,41.10301065]
[1744574785170,4.3610616,128.81,128.8,41.52949536]
[1744574785547,0.17068421,128.81,128.8,0.42648471]
[1744574785866,0.17068421,128.81,128.8,41.52949536]
[1744574786068,0.17068421,128.81,128.8,60.17914422]
[1744574786243,0.03,128.87,128.8,0.28432314]
[1744574786441,0.03,128.87,128.78,27.1779]
[1744574786442,41.10301065,128.85,128.79,18.79181043]
[1744574786666,41.10301065,128.84,128.79,59.89482108]
[1744574786861,7.7898,128.87,128.8,48.86691065]
[1744574786862,41.10301065,128.86,128.8,48.86691065]
[1744574787168,7.7898,128.87,128.8,48.86691065]
[1744574787169,41.10301065,128.85,128.8,48.86691065]
[1744574787351,41.10301065,128.86,128.81,41.10301065]
[1744574787560,48.89281065,128.87,128.81,41.10301065]
[1744574787759,0.03,128.87,128.84,41.10301065]
[1744574787952,0.03,128.87,128.85,41.10301065]
[1744574788177,0.03,128.87,128.83,18.64964886]
[1744574788474,0.03,128.87,128.84,41.10301065]
[1744574789063,0.03,128.87,128.84,48.86451065]
[1744574789267,6.3493,128.94,128.86,41.10301065]
[1744574789774,41.10301065,128.92,128.86,41.10301065]
[1744574790365,6.3493,128.94,128.86,41.10301065]
[1744574790366,7.7861,128.93,128.87,18.79181043]
[1744574790568,0.03,128.93,128.89,41.10301065]
[1744574790865,0.03,128.93,128.9,41.10301065]
[1744574791077,0.03,128.93,128.91,41.10301065]
[1744574791277,0.03,128.93,128.87,18.79181043]
[1744574791477,41.13301065,128.93,128.87,18.79181043]
[1744574791781,0.03,128.93,128.9,41.10301065]
[1744574791984,41.13301065,128.93,128.88,41.10301065]
[1744574792276,0.03,128.93,128.9,41.10301065]
[1744574792476,0.03,128.93,128.88,7.90106157]
[1744574792776,0.03,128.93,128.9,41.10301065]
[1744574793280,0.03,128.93,128.89,41.10301065]
[1744574794072,0.03,128.93,128.88,7.7589]
[1744574794073,0.03,128.93,128.91,41.10301065]
[1744574794575,0.03,128.93,128.91,0.14216157]
[1744574794755,0.03,128.93,128.92,59.89482108]
[1744574795567,0.03,128.94,128.93,26.83223357]
[1744574795868,0.03,128.94,128.93,7.7561]
[1744574796099,2.7970829,128.99,128.94,18.79181043]
[1744574796255,2.7970829,128.99,128.97,0.28432314]
[1744574796462,2.7970829,128.99,128.98,41.10301065]
[1744574796685,2.7970829,128.99,128.95,1.6129]
[1744574796879,2.7970829,128.99,128.98,41.10301065]
[1744574797086,0.03,129.06,128.99,18.79181043]
[1744574797258,0.03,129.06,129.05,41.10301065]
[1744574797677,0.03,129.06,128.98,6.6351]
[1744574797984,0.03,129.06,128.99,45.78344886]
[1744574798283,0.03,129.06,129.02,41.10301065]
[1744574798666,41.10301065,129.05,128.99,7.7525]
[1744574798872,41.10301065,129.04,128.98,48.85591065]
[1744574799090,41.10301065,129.04,128.98,7.7529]
[1744574799289,41.10301065,129.04,128.98,48.85591065]
[1744574799471,26.03,129.06,128.97,64.83651065]
[1744574799671,41.10301065,129.01,128.95,41.10301065]
[1744574799872,7.7489,129.05,128.99,41.10301065]
[1744574800186,41.10301065,129.04,128.99,41.10301065]
[1744574800758,7.7507,129.02,128.96,7.7543]
[1744574800989,41.10301065,129.02,128.97,41.10301065]
[1744574801195,41.10301065,129.01,128.95,18.64964886]
[1744574801356,41.10301065,128.97,128.92,7.7567]
[1744574801561,41.10301065,128.96,128.9,7.7579]
[1744574801878,41.10301065,128.97,128.92,41.10301065]
[1744574802079,26.0,129.0,128.89,7.7583]
[1744574802281,41.10301065,128.96,128.9,41.10301065]
[1744574802479,41.10301065,128.96,128.89,7.7583]
[1744574802480,26.0,128.99,128.91,41.10301065]
[1744574802686,41.10301065,128.96,128.91,41.10301065]
[1744574802976,41.10301065,128.97,128.91,7.7569]
[1744574803160,41.10301065,128.95,128.9,41.10301065]
[1744574803360,41.10301065,128.95,128.89,48.86151065]
[1744574803564,41.10301065,128.95,128.9,41.10301065]
[1744574803762,41.10301065,128.95,128.89,7.7585]
[1744574803960,41.10301065,128.92,128.86,41.10301065]
[1744574804178,41.10301065,128.96,128.87,41.10301065]
[1744574804482,26.0,128.94,128.89,41.10301065]
[1744574804865,67.10301065,128.94,128.89,41.10301065]
[1744574805063,7.7561,128.93,128.89,41.10301065]
[1744574805271,74.85871065,128.94,128.89,48.86151065]
[1744574805487,74.85871065,128.94,128.89,41.10301065]
[1744574805986,74.85871065,128.94,128.88,41.10301065]
[1744574806193,41.10301065,128.93,128.86,7.7603]
[1744574806391,41.10301065,128.92,128.85,7.7608]
[1744574806596,33.7557,128.94,128.87,41.10301065]
[1744574806768,41.10301065,128.93,128.87,41.10301065]
[1744574806971,48.85871065,128.94,128.89,41.10301065]
[1744574807295,7.7557,128.94,128.9,41.10301065]
[1744574807475,48.85801065,128.95,128.89,41.10301065]
[1744574807672,41.10301065,128.92,128.84,15.6]
[1744574807869,27.1423,128.95,128.84,15.6]
[1744574807870,41.10301065,128.94,128.88,41.10301065]
[1744574808795,41.10301065,128.94,128.89,41.10301065]
[1744574808996,7.7561,128.93,128.89,41.10301065]
[1744574809295,7.7561,128.93,128.88,41.10301065]
[1744574809670,7.7561,128.93,128.86,41.10301065]
[1744574809671,41.10301065,128.91,128.86,41.10301065]
[1744574809871,41.10301065,128.91,128.85,48.86381065]
[1744574810087,41.10301065,128.9,128.84,23.3613]
[1744574810494,41.10301065,128.89,128.82,7.7625]
[1744574810684,41.10301065,128.88,128.83,41.10301065]
[1744574810883,41.10301065,128.87,128.81,0.063]
[1744574811080,66.21142314,128.93,128.84,41.10301065]
[1744574811081,27.1485,128.92,128.84,41.10301065]
[1744574811386,27.1485,128.92,128.81,0.063]
[1744574811387,41.10301065,128.89,128.83,41.10301065]
[1744574811590,41.10301065,128.88,128.81,0.063]
[1744574811776,27.1485,128.92,128.81,0.063]
[1744574811777,41.10301065,128.87,128.81,0.063]
[1744574811978,19.07613357,128.91,128.81,41.16601065]
[1744574812174,41.10301065,128.87,128.81,41.16601065]
[1744574812893,41.10301065,128.85,128.81,0.063]
[1744574814194,27.1528,128.9,128.82,41.10301065]
[1744574814398,41.10301065,128.88,128.82,41.10301065]
[1744574814575,41.10301065,128.88,128.83,41.10301065]
[1744574814770,48.86271065,128.87,128.81,0.063]
[1744574814985,41.10301065,128.83,128.81,0.063]
[1744574815187,41.10301065,128.82,128.81,0.063]
[1744574815389,41.10301065,128.84,128.81,0.063]
[1744574815600,41.10301065,128.85,128.81,0.063]
[1744574815902,41.10301065,128.86,128.81,41.16601065]
[1744574816204,41.10301065,128.85,128.81,0.063]
[1744574816788,48.86421065,128.85,128.81,0.063]
[1744574817792,48.86351065,128.86,128.81,41.16601065]
[1744574818486,7.7605,128.86,128.81,41.16601065]
[1744574818800,48.86351065,128.86,128.81,41.16601065]
[1744574819575,41.10301065,128.85,128.81,0.063]
[1744574820297,7.7605,128.86,128.81,0.063]
[1744574820501,7.7573,128.91,128.85,41.10301065]
[1744574820704,7.7569,128.92,128.88,41.10301065]
[1744574820884,7.7569,128.92,128.82,19.07613357]
[1744574820885,7.7543,128.96,128.86,18.79181043]
[1744574821077,41.10301065,128.95,128.86,18.64964886]
[1744574821276,27.1401,128.96,128.86,18.64964886]
[1744574821277,48.85851065,128.94,128.89,41.10301065]
[1744574821478,41.10301065,128.93,128.88,41.10301065]
[1744574821904,41.10301065,128.93,128.86,7.7601]
[1744574822086,41.10301065,128.93,128.87,41.10301065]
[1744574822279,41.10301065,128.92,128.86,41.10301065]
[1744574822482,41.10301065,128.9,128.81,6.6335]
[1744574822690,41.10301065,128.9,128.84,41.10301065]